[Event "Titled Tuesday Blitz February 21 Early 2023"]
[White "Delgado Rosas, Fatima Alexandra"]
[Black "babbilator"]
[WhiteFideId "6603963"]
[WhiteElo "1500"]
[BlackElo "2129"]
[Result "1-0"]
[Round "06"]
[TimeControl "180+2"]
[Date "2023.02.21"]
[WhiteClock "0:01:02"]
[BlackClock "0:00:28"]

1. d4 {[%clk 0:03:00]}  Nf6 {[%clk 0:03:00]} 2. c4 {[%clk 0:03:01]}  e6 {[%clk 0:03:00]} 3. Nc3 {[%clk 0:03:00]}  Bb4 {[%clk 0:03:01]} 4. e3 {[%clk 0:02:58]}  c5 {[%clk 0:03:00]} 5. Bd3 {[%clk 0:02:59]}  cxd4 {[%clk 0:02:46]} 6. exd4 {[%clk 0:02:59]}  d5 {[%clk 0:02:46]} 7. Ne2 {[%clk 0:03:00]}  dxc4 {[%clk 0:02:36]} 8. Bxc4 {[%clk 0:03:01]}  O-O {[%clk 0:02:33]} 9. O-O {[%clk 0:03:01]}  Nbd7 {[%clk 0:02:33]} 10. Bg5 {[%clk 0:03:01]}  Nb6 {[%clk 0:02:31]} 11. Bb3 {[%clk 0:03:00]}  Be7 {[%clk 0:02:31]} 12. Rc1 {[%clk 0:02:38]}  Bd7 {[%clk 0:02:30]} 13. Nf4 {[%clk 0:02:31]}  Bc6 {[%clk 0:02:30]} 14. Qe2 {[%clk 0:02:15]}  Qd6 {[%clk 0:01:55]} 15. Rfd1 {[%clk 0:02:08]}  Rfd8 {[%clk 0:01:50]} 16. Nd3 {[%clk 0:02:07]}  Nbd5 {[%clk 0:01:43]} 17. Ne5 {[%clk 0:02:04]}  Rac8 {[%clk 0:01:33]} 18. h3 {[%clk 0:02:04]}  Nxc3 {[%clk 0:01:17]} 19. bxc3 {[%clk 0:02:03]}  Nd5 {[%clk 0:01:13]} 20. Bxe7 {[%clk 0:02:00]}  Qxe7 {[%clk 0:01:10]} 21. c4 {[%clk 0:01:53]}  Nf4 {[%clk 0:01:09]} 22. Qg4 {[%clk 0:01:31]}  Qf6 {[%clk 0:00:59]} 23. Nxc6 {[%clk 0:01:28]}  bxc6 {[%clk 0:00:59]} 24. g3 {[%clk 0:01:23]}  Ng6 {[%clk 0:00:47]} 25. Kg2 {[%clk 0:01:22]}  Rd6 {[%clk 0:00:31]} 26. Rd2 {[%clk 0:01:19]}  Rcd8 {[%clk 0:00:31]} 27. Rcd1 {[%clk 0:01:20]}  e5 {[%clk 0:00:29]} 28. dxe5 {[%clk 0:01:13]}  Nxe5 {[%clk 0:00:28]} 29. Rxd6 {[%clk 0:01:03]}  Rxd6 {[%clk 0:00:28]} 30. Qc8+ {[%clk 0:01:02]} 1-0


[Site "https://www.chess.com"]

[Event "Titled Tuesday Blitz February 21 Early 2023"]
[White "mohsengabr2002"]
[Black "Winkels, Marcel"]
[BlackFideId "1003887"]
[WhiteElo "2324"]
[BlackElo "1960"]
[Result "1-0"]
[Round "06"]
[TimeControl "180+2"]
[Date "2023.02.21"]
[WhiteClock "0:00:48"]
[BlackClock "0:00:03"]

1. g3 {[%clk 0:02:50]}  Nf6 {[%clk 0:02:56]} 2. f3 {[%clk 0:02:49]}  g6 {[%clk 0:02:57]} 3. Nh3 {[%clk 0:02:49]}  Bg7 {[%clk 0:02:57]} 4. e3 {[%clk 0:02:49]}  O-O {[%clk 0:02:58]} 5. Nf2 {[%clk 0:02:49]}  d6 {[%clk 0:02:58]} 6. Bg2 {[%clk 0:02:50]}  c5 {[%clk 0:02:59]} 7. O-O {[%clk 0:02:34]}  Nc6 {[%clk 0:02:59]} 8. d3 {[%clk 0:02:34]}  e5 {[%clk 0:02:55]} 9. c3 {[%clk 0:02:33]}  Be6 {[%clk 0:02:48]} 10. a4 {[%clk 0:02:32]}  Rb8 {[%clk 0:02:42]} 11. Na3 {[%clk 0:02:30]}  a6 {[%clk 0:02:42]} 12. e4 {[%clk 0:02:28]}  b5 {[%clk 0:02:38]} 13. axb5 {[%clk 0:02:27]}  axb5 {[%clk 0:02:37]} 14. f4 {[%clk 0:02:26]}  b4 {[%clk 0:02:32]} 15. Nc2 {[%clk 0:02:25]}  Bb3 {[%clk 0:02:24]} 16. Qd2 {[%clk 0:02:23]}  bxc3 {[%clk 0:02:21]} 17. bxc3 {[%clk 0:02:23]}  Qd7 {[%clk 0:02:04]} 18. f5 {[%clk 0:02:16]}  c4 {[%clk 0:01:47]} 19. g4 {[%clk 0:02:08]}  h6 {[%clk 0:01:44]} 20. h4 {[%clk 0:02:07]}  cxd3 {[%clk 0:01:34]} 21. Qxd3 {[%clk 0:02:06]}  Rfc8 {[%clk 0:01:22]} 22. g5 {[%clk 0:02:04]}  hxg5 {[%clk 0:01:21]} 23. hxg5 {[%clk 0:02:05]}  Nh5 {[%clk 0:01:18]} 24. f6 {[%clk 0:02:03]}  Bf8 {[%clk 0:01:15]} 25. Ne3 {[%clk 0:02:00]}  Be6 {[%clk 0:01:13]} 26. Nd5 {[%clk 0:01:59]}  Na7 {[%clk 0:00:47]} 27. Bf3 {[%clk 0:01:57]}  Ng3 {[%clk 0:00:33]} 28. Kg2 {[%clk 0:01:55]}  Nxf1 {[%clk 0:00:30]} 29. Qxf1 {[%clk 0:01:55]}  Bxd5 {[%clk 0:00:26]} 30. exd5 {[%clk 0:01:54]}  Nb5 {[%clk 0:00:25]} 31. Bg4 {[%clk 0:01:41]}  Qc7 {[%clk 0:00:22]} 32. Bxc8 {[%clk 0:01:39]}  Rxc8 {[%clk 0:00:22]} 33. Qxb5 {[%clk 0:01:34]}  Qxc3 {[%clk 0:00:21]} 34. Qb2 {[%clk 0:01:24]}  Qc4 {[%clk 0:00:19]} 35. Qd2 {[%clk 0:01:21]}  e4 {[%clk 0:00:18]} 36. Bb2 {[%clk 0:01:16]}  Rc5 {[%clk 0:00:16]} 37. Rd1 {[%clk 0:01:11]}  Qb3 {[%clk 0:00:13]} 38. Bd4 {[%clk 0:00:58]}  Rc2 {[%clk 0:00:11]} 39. Qe3 {[%clk 0:00:58]}  Qa2 {[%clk 0:00:09]} 40. Ra1 {[%clk 0:00:53]}  Qc4 {[%clk 0:00:08]} 41. Ra8 {[%clk 0:00:52]}  Re2 {[%clk 0:00:06]} 42. Qc3 {[%clk 0:00:49]}  Qxc3 {[%clk 0:00:02]} 43. Bxc3 {[%clk 0:00:49]}  e3 {[%clk 0:00:03]} 44. Kf3 {[%clk 0:00:49]}  Rxf2+ {[%clk 0:00:03]} 45. Kxe3 {[%clk 0:00:49]}  Rc2 {[%clk 0:00:04]} 46. Bb4 {[%clk 0:00:48]}  Rc4 {[%clk 0:00:03]} 47. Bxd6 {[%clk 0:00:48]} 1-0


[Site "https://www.chess.com"]

[Event "Titled Tuesday Blitz February 21 Early 2023"]
[White "rikchessmx"]
[Black "Osuna Vega, Enrique"]
[BlackFideId "2219549"]
[WhiteElo "2351"]
[BlackElo "2061"]
[Result "1-0"]
[Round "06"]
[TimeControl "180+2"]
[Date "2023.02.21"]
[WhiteClock "0:01:47"]
[BlackClock "0:00:01"]

1. e4 {[%clk 0:03:00]}  d6 {[%clk 0:02:57]} 2. d4 {[%clk 0:03:00]}  Nf6 {[%clk 0:02:57]} 3. Nc3 {[%clk 0:03:01]}  e5 {[%clk 0:02:57]} 4. f3 {[%clk 0:03:01]}  c6 {[%clk 0:02:56]} 5. Bc4 {[%clk 0:03:00]}  Be7 {[%clk 0:02:54]} 6. Nge2 {[%clk 0:03:00]}  b5 {[%clk 0:02:54]} 7. Bb3 {[%clk 0:03:00]}  a6 {[%clk 0:02:51]} 8. Be3 {[%clk 0:02:58]}  exd4 {[%clk 0:02:50]} 9. Nxd4 {[%clk 0:02:58]}  c5 {[%clk 0:02:48]} 10. Ndxb5 {[%clk 0:02:55]}  axb5 {[%clk 0:02:49]} 11. Nxb5 {[%clk 0:02:56]}  Qa5+ {[%clk 0:02:16]} 12. Nc3 {[%clk 0:02:55]}  O-O {[%clk 0:02:12]} 13. O-O {[%clk 0:02:53]}  Ba6 {[%clk 0:02:09]} 14. Re1 {[%clk 0:02:53]}  Nc6 {[%clk 0:02:04]} 15. Nd5 {[%clk 0:02:47]}  Bd8 {[%clk 0:01:22]} 16. Bd2 {[%clk 0:02:40]}  Qb5 {[%clk 0:01:14]} 17. c4 {[%clk 0:02:38]}  Qb8 {[%clk 0:01:08]} 18. Bc3 {[%clk 0:02:35]}  Nxd5 {[%clk 0:01:01]} 19. Qxd5 {[%clk 0:02:34]}  Bb7 {[%clk 0:00:48]} 20. Qh5 {[%clk 0:02:30]}  Ne5 {[%clk 0:00:32]} 21. Rad1 {[%clk 0:02:24]}  Bf6 {[%clk 0:00:31]} 22. f4 {[%clk 0:02:15]}  Nd7 {[%clk 0:00:30]} 23. e5 {[%clk 0:02:13]}  g6 {[%clk 0:00:20]} 24. Qh3 {[%clk 0:02:10]}  Nxe5 {[%clk 0:00:11]} 25. fxe5 {[%clk 0:02:10]}  Bxe5 {[%clk 0:00:11]} 26. Bxe5 {[%clk 0:02:09]}  dxe5 {[%clk 0:00:12]} 27. Qg3 {[%clk 0:02:07]}  Qc7 {[%clk 0:00:10]} 28. Qxe5 {[%clk 0:02:05]}  Qb6 {[%clk 0:00:05]} 29. Rd6 {[%clk 0:01:59]}  Qa5 {[%clk 0:00:03]} 30. Red1 {[%clk 0:01:58]}  Rae8 {[%clk 0:00:02]} 31. Qg3 {[%clk 0:01:52]}  Rd8 {[%clk 0:00:02]} 32. h4 {[%clk 0:01:48]}  Rxd6 {[%clk 0:00:01]} 33. Rxd6 {[%clk 0:01:47]}  Re8 {[%clk 0:00:01]} 34. Kh2 {[%clk 0:01:47]} 1-0


[Site "https://www.chess.com"]

[Event "Titled Tuesday Blitz February 21 Early 2023"]
[White "Uzcategui Rodriguez, Alejandro"]
[Black "Bongo Akanga Ndjila, Barthelemy"]
[WhiteFideId "3903400"]
[BlackFideId "10609431"]
[WhiteElo "2255"]
[BlackElo "1824"]
[Result "1-0"]
[Round "06"]
[TimeControl "180+2"]
[Date "2023.02.21"]
[WhiteClock "0:01:33"]
[BlackClock "0:00:09"]

1. e4 {[%clk 0:03:00]}  e5 {[%clk 0:02:26]} 2. Nf3 {[%clk 0:03:00]}  Nc6 {[%clk 0:02:26]} 3. d4 {[%clk 0:03:00]}  exd4 {[%clk 0:02:25]} 4. Bc4 {[%clk 0:03:01]}  Nf6 {[%clk 0:02:23]} 5. O-O {[%clk 0:02:59]}  Bc5 {[%clk 0:02:21]} 6. e5 {[%clk 0:02:55]}  d5 {[%clk 0:02:21]} 7. Bb5 {[%clk 0:02:55]}  Nd7 {[%clk 0:02:17]} 8. Bxc6 {[%clk 0:02:38]}  bxc6 {[%clk 0:02:16]} 9. Re1 {[%clk 0:02:38]}  O-O {[%clk 0:02:14]} 10. Nxd4 {[%clk 0:02:37]}  Bb7 {[%clk 0:02:06]} 11. f4 {[%clk 0:02:35]}  Nb6 {[%clk 0:01:59]} 12. Be3 {[%clk 0:02:33]}  Be7 {[%clk 0:01:56]} 13. Bf2 {[%clk 0:02:28]}  g6 {[%clk 0:01:54]} 14. c3 {[%clk 0:02:21]}  c5 {[%clk 0:01:54]} 15. Nf3 {[%clk 0:02:21]}  Nc4 {[%clk 0:01:44]} 16. Qc1 {[%clk 0:02:19]}  c6 {[%clk 0:01:37]} 17. Nbd2 {[%clk 0:02:18]}  Nxd2 {[%clk 0:01:35]} 18. Qxd2 {[%clk 0:02:19]}  Ba6 {[%clk 0:01:31]} 19. Rad1 {[%clk 0:02:16]}  Qa5 {[%clk 0:01:28]} 20. a3 {[%clk 0:02:14]}  Rfd8 {[%clk 0:01:25]} 21. f5 {[%clk 0:02:13]}  Bf8 {[%clk 0:01:20]} 22. e6 {[%clk 0:02:12]}  Re8 {[%clk 0:01:13]} 23. exf7+ {[%clk 0:02:10]}  Kxf7 {[%clk 0:01:13]} 24. Ng5+ {[%clk 0:02:06]}  Kg8 {[%clk 0:01:10]} 25. fxg6 {[%clk 0:02:04]}  hxg6 {[%clk 0:01:09]} 26. Qc2 {[%clk 0:02:01]}  Kg7 {[%clk 0:00:44]} 27. Ne6+ {[%clk 0:01:44]}  Kh7 {[%clk 0:00:41]} 28. Nxf8+ {[%clk 0:01:37]}  Rxf8 {[%clk 0:00:41]} 29. Re7+ {[%clk 0:01:37]}  Kh6 {[%clk 0:00:33]} 30. Be3+ {[%clk 0:01:37]}  Kh5 {[%clk 0:00:32]} 31. Re5+ {[%clk 0:01:35]}  g5 {[%clk 0:00:12]} 32. Rxg5+ {[%clk 0:01:33]}  Kh4 {[%clk 0:00:09]} 33. Qh7# {[%clk 0:01:33]} 1-0


[Site "https://www.chess.com"]

[Event "Titled Tuesday Blitz February 21 Early 2023"]
[White "Larina, Maria"]
[Black "Alhadad, Mahmoud"]
[WhiteFideId "24113182"]
[BlackFideId "11501863"]
[WhiteElo "1948"]
[BlackElo "1840"]
[Result "0-1"]
[Round "06"]
[TimeControl "180+2"]
[Date "2023.02.21"]
[WhiteClock "0:00:01"]
[BlackClock "0:00:11"]

1. e4 {[%clk 0:03:00]}  d5 {[%clk 0:03:00]} 2. exd5 {[%clk 0:03:00]}  Nf6 {[%clk 0:03:00]} 3. d4 {[%clk 0:02:57]}  Bg4 {[%clk 0:03:00]} 4. f3 {[%clk 0:02:57]}  Bf5 {[%clk 0:03:00]} 5. Bb5+ {[%clk 0:02:55]}  Nbd7 {[%clk 0:02:59]} 6. c4 {[%clk 0:02:43]}  a6 {[%clk 0:02:58]} 7. Ba4 {[%clk 0:02:39]}  b5 {[%clk 0:02:57]} 8. cxb5 {[%clk 0:02:29]}  axb5 {[%clk 0:02:58]} 9. Bxb5 {[%clk 0:02:28]}  Nxd5 {[%clk 0:02:57]} 10. Bd3 {[%clk 0:02:05]}  e6 {[%clk 0:02:41]} 11. Bxf5 {[%clk 0:02:00]}  exf5 {[%clk 0:02:42]} 12. Ne2 {[%clk 0:02:00]}  Qh4+ {[%clk 0:02:26]} 13. g3 {[%clk 0:01:42]}  Bb4+ {[%clk 0:02:25]} 14. Bd2 {[%clk 0:01:39]}  Qh3 {[%clk 0:02:22]} 15. Kf2 {[%clk 0:01:31]}  O-O {[%clk 0:02:13]} 16. Bxb4 {[%clk 0:01:24]}  Nxb4 {[%clk 0:02:14]} 17. a3 {[%clk 0:01:24]}  Nd5 {[%clk 0:01:45]} 18. Nbc3 {[%clk 0:01:13]}  N7b6 {[%clk 0:01:41]} 19. Qd3 {[%clk 0:00:40]}  Rfe8 {[%clk 0:01:37]} 20. Nd1 {[%clk 0:00:20]}  Re7 {[%clk 0:01:23]} 21. Ng1 {[%clk 0:00:14]}  Qh6 {[%clk 0:01:21]} 22. Nc3 {[%clk 0:00:12]}  Rae8 {[%clk 0:01:20]} 23. Rd1 {[%clk 0:00:11]}  Re3 {[%clk 0:01:09]} 24. Qd2 {[%clk 0:00:11]}  Nc4 {[%clk 0:01:02]} 25. Qc1 {[%clk 0:00:09]}  Qe6 {[%clk 0:00:55]} 26. Nxd5 {[%clk 0:00:08]}  Qxd5 {[%clk 0:00:54]} 27. Qc2 {[%clk 0:00:07]}  g5 {[%clk 0:00:43]} 28. Rd3 {[%clk 0:00:08]}  g4 {[%clk 0:00:40]} 29. b3 {[%clk 0:00:05]}  Nxa3 {[%clk 0:00:33]} 30. Qc1 {[%clk 0:00:03]}  Rxd3 {[%clk 0:00:31]} 31. Qxa3 {[%clk 0:00:02]}  Qxd4+ {[%clk 0:00:19]} 32. Kf1 {[%clk 0:00:01]}  Rd1+ {[%clk 0:00:16]} 33. Kg2 {[%clk 0:00:01]}  Rd2+ {[%clk 0:00:12]} 34. Kf1 {[%clk 0:00:01]}  Qd3+ {[%clk 0:00:11]} 0-1


[Site "https://www.chess.com"]

[Event "Titled Tuesday Blitz February 21 Early 2023"]
[White "kiwibobo"]
[Black "Da Silva Borges, Rodrigo"]
[BlackFideId "2115778"]
[WhiteElo "2140"]
[BlackElo "2199"]
[Result "1-0"]
[Round "06"]
[TimeControl "180+2"]
[Date "2023.02.21"]
[WhiteClock "0:00:12"]
[BlackClock "0:00:03"]

1. e4 {[%clk 0:03:00]}  c5 {[%clk 0:02:56]} 2. Nf3 {[%clk 0:03:00]}  d6 {[%clk 0:02:55]} 3. d4 {[%clk 0:02:59]}  cxd4 {[%clk 0:02:55]} 4. Nxd4 {[%clk 0:02:58]}  Nf6 {[%clk 0:02:56]} 5. Nc3 {[%clk 0:02:58]}  a6 {[%clk 0:02:55]} 6. Be2 {[%clk 0:02:59]}  e6 {[%clk 0:02:55]} 7. Be3 {[%clk 0:02:59]}  Be7 {[%clk 0:02:54]} 8. O-O {[%clk 0:02:59]}  O-O {[%clk 0:02:54]} 9. f4 {[%clk 0:02:59]}  Qc7 {[%clk 0:02:54]} 10. a4 {[%clk 0:02:59]}  Nc6 {[%clk 0:02:54]} 11. Kh1 {[%clk 0:02:58]}  Re8 {[%clk 0:02:50]} 12. Bf3 {[%clk 0:02:57]}  Bd7 {[%clk 0:02:49]} 13. Nb3 {[%clk 0:02:57]}  b6 {[%clk 0:02:48]} 14. Bg1 {[%clk 0:02:55]}  Rab8 {[%clk 0:02:44]} 15. Qe2 {[%clk 0:02:55]}  Bc8 {[%clk 0:02:43]} 16. Qc4 {[%clk 0:02:47]}  Bb7 {[%clk 0:02:18]} 17. Nd4 {[%clk 0:02:36]}  Rbc8 {[%clk 0:02:07]} 18. Nb3 {[%clk 0:02:15]}  Nd7 {[%clk 0:01:43]} 19. Qe2 {[%clk 0:01:48]}  Nc5 {[%clk 0:01:30]} 20. Nxc5 {[%clk 0:01:48]}  bxc5 {[%clk 0:01:29]} 21. f5 {[%clk 0:01:41]}  Nd4 {[%clk 0:01:25]} 22. Bxd4 {[%clk 0:01:35]}  cxd4 {[%clk 0:01:25]} 23. fxe6 {[%clk 0:01:35]}  fxe6 {[%clk 0:01:21]} 24. Bg4 {[%clk 0:01:31]}  Bf6 {[%clk 0:01:15]} 25. Nd1 {[%clk 0:01:16]}  Qxc2 {[%clk 0:01:15]} 26. Qf3 {[%clk 0:01:03]}  Bxe4 {[%clk 0:01:01]} 27. Qh3 {[%clk 0:01:03]}  Kh8 {[%clk 0:00:49]} 28. Nf2 {[%clk 0:01:00]}  Bf5 {[%clk 0:00:39]} 29. Bxf5 {[%clk 0:00:55]}  Qxf5 {[%clk 0:00:39]} 30. Qxf5 {[%clk 0:00:53]}  exf5 {[%clk 0:00:39]} 31. Nd3 {[%clk 0:00:54]}  g6 {[%clk 0:00:37]} 32. h3 {[%clk 0:00:51]}  a5 {[%clk 0:00:33]} 33. Rac1 {[%clk 0:00:50]}  Kg7 {[%clk 0:00:31]} 34. Nf4 {[%clk 0:00:46]}  Rc5 {[%clk 0:00:28]} 35. Rce1 {[%clk 0:00:42]}  Rxe1 {[%clk 0:00:19]} 36. Rxe1 {[%clk 0:00:43]}  Rc4 {[%clk 0:00:19]} 37. Re6 {[%clk 0:00:40]}  Be5 {[%clk 0:00:19]} 38. Nd3 {[%clk 0:00:39]}  Kf7 {[%clk 0:00:18]} 39. Rxe5 {[%clk 0:00:39]}  Rxa4 {[%clk 0:00:12]} 40. Rb5 {[%clk 0:00:33]}  Ke6 {[%clk 0:00:11]} 41. Kh2 {[%clk 0:00:31]}  g5 {[%clk 0:00:11]} 42. Kg3 {[%clk 0:00:31]}  Ra1 {[%clk 0:00:10]} 43. Kf2 {[%clk 0:00:30]}  Rd1 {[%clk 0:00:10]} 44. Ke2 {[%clk 0:00:26]}  Rg1 {[%clk 0:00:10]} 45. Kf2 {[%clk 0:00:25]}  Rd1 {[%clk 0:00:11]} 46. Ne1 {[%clk 0:00:25]}  Rd2+ {[%clk 0:00:11]} 47. Kf1 {[%clk 0:00:24]}  h5 {[%clk 0:00:10]} 48. Nf3 {[%clk 0:00:22]}  Rd1+ {[%clk 0:00:10]} 49. Ke2 {[%clk 0:00:23]}  Rb1 {[%clk 0:00:09]} 50. Nxd4+ {[%clk 0:00:22]}  Kf6 {[%clk 0:00:08]} 51. Nxf5 {[%clk 0:00:22]}  a4 {[%clk 0:00:08]} 52. Nxd6 {[%clk 0:00:21]}  a3 {[%clk 0:00:09]} 53. bxa3 {[%clk 0:00:21]}  Ra1 {[%clk 0:00:08]} 54. Ra5 {[%clk 0:00:20]}  Ra2+ {[%clk 0:00:08]} 55. Kf1 {[%clk 0:00:20]}  g4 {[%clk 0:00:08]} 56. hxg4 {[%clk 0:00:18]}  hxg4 {[%clk 0:00:09]} 57. g3 {[%clk 0:00:18]}  Ke6 {[%clk 0:00:07]} 58. Ne4 {[%clk 0:00:18]}  Kf7 {[%clk 0:00:06]} 59. Ra8 {[%clk 0:00:17]}  Ke6 {[%clk 0:00:07]} 60. a4 {[%clk 0:00:18]}  Ke5 {[%clk 0:00:07]} 61. Nf2 {[%clk 0:00:17]}  Kd4 {[%clk 0:00:06]} 62. a5 {[%clk 0:00:15]}  Ke3 {[%clk 0:00:07]} 63. Nxg4+ {[%clk 0:00:15]}  Kf3 {[%clk 0:00:06]} 64. Ne5+ {[%clk 0:00:15]}  Kxg3 {[%clk 0:00:05]} 65. a6 {[%clk 0:00:15]}  Kf4 {[%clk 0:00:06]} 66. a7 {[%clk 0:00:15]}  Ra1+ {[%clk 0:00:06]} 67. Ke2 {[%clk 0:00:14]}  Ra2+ {[%clk 0:00:06]} 68. Kd3 {[%clk 0:00:14]}  Ra3+ {[%clk 0:00:04]} 69. Kc4 {[%clk 0:00:14]}  Ke4 {[%clk 0:00:05]} 70. Nd3 {[%clk 0:00:12]}  Ra4+ {[%clk 0:00:03]} 71. Kb5 {[%clk 0:00:12]} 1-0


[Site "https://www.chess.com"]

[Event "Titled Tuesday Blitz February 21 Early 2023"]
[White "Jesusesmifuerza"]
[Black "Meera, Sai"]
[BlackFideId "5004357"]
[WhiteElo "2002"]
[BlackElo "2064"]
[Result "0-1"]
[Round "06"]
[TimeControl "180+2"]
[Date "2023.02.21"]
[WhiteClock "0:00:02"]
[BlackClock "0:01:21"]

1. d4 {[%clk 0:03:00]}  Nf6 {[%clk 0:02:59]} 2. Nc3 {[%clk 0:03:01]}  d5 {[%clk 0:02:59]} 3. Bf4 {[%clk 0:03:01]}  g6 {[%clk 0:02:58]} 4. e3 {[%clk 0:02:59]}  Bg7 {[%clk 0:02:59]} 5. Nb5 {[%clk 0:03:00]}  Na6 {[%clk 0:02:58]} 6. h3 {[%clk 0:03:00]}  O-O {[%clk 0:02:58]} 7. Nf3 {[%clk 0:02:58]}  Ne4 {[%clk 0:02:58]} 8. c3 {[%clk 0:02:57]}  c6 {[%clk 0:02:57]} 9. Na3 {[%clk 0:02:56]}  Nc7 {[%clk 0:02:58]} 10. Bd3 {[%clk 0:02:54]}  Bf5 {[%clk 0:02:55]} 11. g4 {[%clk 0:02:48]}  Bd7 {[%clk 0:02:48]} 12. c4 {[%clk 0:02:39]}  Ne6 {[%clk 0:02:41]} 13. Be5 {[%clk 0:02:35]}  Qa5+ {[%clk 0:02:40]} 14. Kf1 {[%clk 0:02:30]}  f6 {[%clk 0:02:33]} 15. Bh2 {[%clk 0:02:29]}  N6g5 {[%clk 0:02:31]} 16. Nxg5 {[%clk 0:02:15]}  fxg5 {[%clk 0:02:26]} 17. Bxe4 {[%clk 0:02:13]}  dxe4 {[%clk 0:02:27]} 18. Bg3 {[%clk 0:02:07]}  Rf3 {[%clk 0:02:27]} 19. Kg2 {[%clk 0:02:06]}  Raf8 {[%clk 0:02:27]} 20. Qc2 {[%clk 0:01:56]}  h5 {[%clk 0:02:21]} 21. Qxe4 {[%clk 0:01:54]}  R3f6 {[%clk 0:02:14]} 22. Qxe7 {[%clk 0:01:36]}  R8f7 {[%clk 0:02:05]} 23. Qe4 {[%clk 0:01:08]}  h4 {[%clk 0:02:04]} 24. Rhf1 {[%clk 0:01:05]}  hxg3 {[%clk 0:02:01]} 25. Kxg3 {[%clk 0:01:06]}  Qc7+ {[%clk 0:02:00]} 26. Kg2 {[%clk 0:01:05]}  Re6 {[%clk 0:01:54]} 27. Qd3 {[%clk 0:01:02]}  Qd6 {[%clk 0:01:43]} 28. c5 {[%clk 0:00:57]}  Qd5+ {[%clk 0:01:42]} 29. f3 {[%clk 0:00:44]}  Rfe7 {[%clk 0:01:38]} 30. Rfe1 {[%clk 0:00:39]}  Bxd4 {[%clk 0:01:37]} 31. exd4 {[%clk 0:00:30]}  Rxe1 {[%clk 0:01:36]} 32. Qxg6+ {[%clk 0:00:30]}  Rg7 {[%clk 0:01:36]} 33. Qxg7+ {[%clk 0:00:20]}  Kxg7 {[%clk 0:01:36]} 34. Rxe1 {[%clk 0:00:19]}  Be6 {[%clk 0:01:33]} 35. Rd1 {[%clk 0:00:16]}  Qxa2 {[%clk 0:01:32]} 36. Rd2 {[%clk 0:00:14]}  Bd5 {[%clk 0:01:32]} 37. Kg3 {[%clk 0:00:13]}  Qb3 {[%clk 0:01:32]} 38. Rf2 {[%clk 0:00:14]}  a5 {[%clk 0:01:31]} 39. h4 {[%clk 0:00:12]}  Qe3 {[%clk 0:01:30]} 40. hxg5 {[%clk 0:00:11]}  Qxg5 {[%clk 0:01:30]} 41. Nc2 {[%clk 0:00:11]}  Bb3 {[%clk 0:01:27]} 42. Ne1 {[%clk 0:00:10]}  Qe3 {[%clk 0:01:26]} 43. Ng2 {[%clk 0:00:09]}  Qxd4 {[%clk 0:01:27]} 44. Nf4 {[%clk 0:00:10]}  Qe5 {[%clk 0:01:24]} 45. Rd2 {[%clk 0:00:06]}  Qe1+ {[%clk 0:01:23]} 46. Rf2 {[%clk 0:00:04]}  Qg1+ {[%clk 0:01:22]} 47. Ng2 {[%clk 0:00:03]}  Bd5 {[%clk 0:01:20]} 48. f4 {[%clk 0:00:03]}  Bxg2 {[%clk 0:01:20]} 49. Rxg2 {[%clk 0:00:03]}  Qe3+ {[%clk 0:01:21]} 50. Kh4 {[%clk 0:00:02]}  Qxf4 {[%clk 0:01:21]} 51. Re2 {[%clk 0:00:02]}  Qh6+ {[%clk 0:01:20]} 52. Kg3 {[%clk 0:00:03]}  Qc1 {[%clk 0:01:21]} 53. Re7+ {[%clk 0:00:02]}  Kg6 {[%clk 0:01:21]} 54. Rxb7 {[%clk 0:00:03]}  Qxc5 {[%clk 0:01:21]} 55. Ra7 {[%clk 0:00:02]}  Qb4 {[%clk 0:01:21]} 0-1


[Site "https://www.chess.com"]

[Event "Titled Tuesday Blitz February 21 Early 2023"]
[White "Ardila, Oscar Humberto"]
[Black "Dias, Joao Batista"]
[WhiteFideId "4404742"]
[BlackFideId "2108240"]
[WhiteElo "1982"]
[BlackElo "1796"]
[Result "1-0"]
[Round "06"]
[TimeControl "180+2"]
[Date "2023.02.21"]
[WhiteClock "0:01:05"]
[BlackClock "0:00:17"]

1. d4 {[%clk 0:02:59]}  d5 {[%clk 0:02:59]} 2. c4 {[%clk 0:03:00]}  c6 {[%clk 0:02:57]} 3. cxd5 {[%clk 0:02:59]}  cxd5 {[%clk 0:02:56]} 4. Nc3 {[%clk 0:03:00]}  e6 {[%clk 0:02:57]} 5. Nf3 {[%clk 0:03:00]}  Be7 {[%clk 0:02:56]} 6. Bf4 {[%clk 0:03:00]}  a6 {[%clk 0:02:55]} 7. e3 {[%clk 0:03:00]}  Nf6 {[%clk 0:02:55]} 8. Bd3 {[%clk 0:03:00]}  O-O {[%clk 0:02:55]} 9. O-O {[%clk 0:03:00]}  Nc6 {[%clk 0:02:54]} 10. Ne5 {[%clk 0:03:00]}  Nb4 {[%clk 0:02:41]} 11. Bb1 {[%clk 0:02:58]}  Nc6 {[%clk 0:02:41]} 12. Nxc6 {[%clk 0:02:58]}  bxc6 {[%clk 0:02:40]} 13. Na4 {[%clk 0:02:56]}  a5 {[%clk 0:02:34]} 14. Qc2 {[%clk 0:02:54]}  Bd7 {[%clk 0:02:31]} 15. Nc5 {[%clk 0:02:51]}  Bxc5 {[%clk 0:02:31]} 16. Qxc5 {[%clk 0:02:51]}  Ra6 {[%clk 0:02:27]} 17. Bd3 {[%clk 0:02:49]}  Rb6 {[%clk 0:02:26]} 18. b3 {[%clk 0:02:47]}  Rb5 {[%clk 0:01:55]} 19. Bxb5 {[%clk 0:02:46]}  cxb5 {[%clk 0:01:55]} 20. Qc7 {[%clk 0:02:45]}  Qa8 {[%clk 0:01:50]} 21. Be5 {[%clk 0:02:37]}  Rc8 {[%clk 0:01:49]} 22. Qd6 {[%clk 0:02:36]}  Rc6 {[%clk 0:01:40]} 23. Qe7 {[%clk 0:02:36]}  Qc8 {[%clk 0:01:27]} 24. Bxf6 {[%clk 0:02:30]}  gxf6 {[%clk 0:01:27]} 25. Qxf6 {[%clk 0:02:30]}  Rc2 {[%clk 0:01:22]} 26. h4 {[%clk 0:02:25]}  b4 {[%clk 0:00:59]} 27. h5 {[%clk 0:02:24]}  Bb5 {[%clk 0:00:59]} 28. h6 {[%clk 0:02:22]}  Kf8 {[%clk 0:00:59]} 29. Qh8+ {[%clk 0:02:00]}  Ke7 {[%clk 0:00:59]} 30. Qxc8 {[%clk 0:02:00]}  Rxc8 {[%clk 0:00:58]} 31. Rfc1 {[%clk 0:02:00]}  Rg8 {[%clk 0:00:57]} 32. Rc7+ {[%clk 0:02:00]}  Kf6 {[%clk 0:00:54]} 33. Rc5 {[%clk 0:02:00]}  Bd3 {[%clk 0:00:54]} 34. Rxa5 {[%clk 0:01:56]}  Rg6 {[%clk 0:00:49]} 35. f3 {[%clk 0:01:55]}  Rxh6 {[%clk 0:00:48]} 36. Rd1 {[%clk 0:01:50]}  Bc2 {[%clk 0:00:46]} 37. Rd2 {[%clk 0:01:46]}  Bf5 {[%clk 0:00:46]} 38. Rb5 {[%clk 0:01:43]}  Rg6 {[%clk 0:00:43]} 39. Rxb4 {[%clk 0:01:43]}  h5 {[%clk 0:00:44]} 40. a4 {[%clk 0:01:38]}  h4 {[%clk 0:00:44]} 41. Kh2 {[%clk 0:01:35]}  Rg8 {[%clk 0:00:39]} 42. a5 {[%clk 0:01:35]}  e5 {[%clk 0:00:37]} 43. dxe5+ {[%clk 0:01:33]}  Kxe5 {[%clk 0:00:37]} 44. Rxh4 {[%clk 0:01:32]}  Bd7 {[%clk 0:00:36]} 45. b4 {[%clk 0:01:30]}  Rb8 {[%clk 0:00:33]} 46. Rh5+ {[%clk 0:01:26]}  f5 {[%clk 0:00:33]} 47. Rh4 {[%clk 0:01:24]}  Bb5 {[%clk 0:00:29]} 48. Rhd4 {[%clk 0:01:23]}  Bc4 {[%clk 0:00:28]} 49. Rb2 {[%clk 0:01:17]}  Rh8+ {[%clk 0:00:24]} 50. Kg1 {[%clk 0:01:17]}  Rb8 {[%clk 0:00:22]} 51. Kf2 {[%clk 0:01:16]}  Rb7 {[%clk 0:00:17]} 52. b5 {[%clk 0:01:05]} 1-0


[Site "https://www.chess.com"]